[Event "*** Titled Tuesday Blitz"]
[Site "Chess.com"]
[Date "2020.12.29"]
[Round "2"]
[White "Fortitudine"]
[Black "JRenatoMaranhao"]
[Result "1-0"]
[WhiteElo "2364"]
[BlackElo "1895"]
[TimeControl "180+1"]
[EndTime "10:17:24 PST"]
[Termination "Fortitudine won on time"]

1. c4 {[%clk 0:03:00.9]} 1... c6 {[%clk 0:02:43.3]} 2. Nf3 {[%clk 0:02:59.2]}
2... d5 {[%clk 0:02:43.4]} 3. g3 {[%clk 0:02:57.7]} 3... g6 {[%clk 0:02:43.1]}
4. Bg2 {[%clk 0:02:56.2]} 4... Bg7 {[%clk 0:02:43.4]} 5. O-O {[%clk 0:02:56.2]}
5... Nf6 {[%clk 0:02:43.4]} 6. Qc2 {[%clk 0:02:49]} 6... O-O {[%clk 0:02:36.4]}
7. b3 {[%clk 0:02:48.7]} 7... Bf5 {[%clk 0:02:24.5]} 8. d3 {[%clk 0:02:46.8]}
8... Na6 {[%clk 0:02:21.1]} 9. a3 {[%clk 0:02:44.2]} 9... d4 {[%clk 0:02:12.1]}
10. Bb2 {[%clk 0:02:39.8]} 10... c5 {[%clk 0:01:58.6]} 11. b4 {[%clk 0:02:39.3]}
11... b6 {[%clk 0:01:52.7]} 12. Ne5 {[%clk 0:02:34.5]} 12... Nc7 {[%clk
0:01:45.8]} 13. Nd2 {[%clk 0:02:21.2]} 13... Ne6 {[%clk 0:01:39.8]} 14. Nb3
{[%clk 0:02:14.2]} 14... Ng4 {[%clk 0:01:16]} 15. Nc6 {[%clk 0:02:11.7]} 15...
Qd6 {[%clk 0:00:55.6]} 16. Bc1 {[%clk 0:02:04.6]} 16... g5 {[%clk 0:00:47.2]}
17. Bd2 {[%clk 0:01:44.1]} 17... Rac8 {[%clk 0:00:45.3]} 18. b5 {[%clk
0:01:44.3]} 18... Rc7 {[%clk 0:00:41.6]} 19. a4 {[%clk 0:01:44]} 19... h5 {[%clk
0:00:30.3]} 20. a5 {[%clk 0:01:37.7]} 20... h4 {[%clk 0:00:26.6]} 21. axb6
{[%clk 0:01:37.8]} 21... axb6 {[%clk 0:00:26.5]} 22. Ra6 {[%clk 0:01:29.9]}
22... Ne5 {[%clk 0:00:14.2]} 23. Rxb6 {[%clk 0:01:22.6]} 23... Nxc6 {[%clk
0:00:13.3]} 24. Rxc6 {[%clk 0:01:21.4]} 24... Rxc6 {[%clk 0:00:12.9]} 25. bxc6
{[%clk 0:01:19]} 25... Be5 {[%clk 0:00:07.5]} 26. Qc1 {[%clk 0:01:14]} 26... f6
{[%clk 0:00:05.2]} 27. Bd5 {[%clk 0:01:08]} 27... Kg7 {[%clk 0:00:04.2]} 28. Kh1
{[%clk 0:01:05.2]} 28... Bh3 {[%clk 0:00:04.4]} 29. Rg1 {[%clk 0:01:04.5]} 29...
Kh8 {[%clk 0:00:02.8]} 30. f4 {[%clk 0:01:03.3]} 30... gxf4 {[%clk 0:00:02.7]}
31. gxf4 {[%clk 0:01:03]} 31... Nxf4 {[%clk 0:00:03.6]} 32. Qe1 {[%clk
0:00:55.9]} 32... e6 {[%clk 0:00:03.1]} 33. Qxh4+ {[%clk 0:00:55.9]} 1-0

[Event "*** Titled Tuesday Blitz"]
[Site "Chess.com"]
[Date "2020.12.29"]
[Round "2"]
[White "KyronGriffith"]
[Black "sopo-tereladze"]
[Result "1-0"]
[WhiteElo "2560"]
[BlackElo "2290"]
[TimeControl "180+1"]
[EndTime "10:17:25 PST"]
[Termination "KyronGriffith won by resignation"]

1. e4 {[%clk 0:03:00.9]} 1... Nf6 {[%clk 0:02:58.1]} 2. e5 {[%clk 0:02:59]} 2...
Nd5 {[%clk 0:02:57.4]} 3. d4 {[%clk 0:02:58.7]} 3... d6 {[%clk 0:02:57.1]} 4.
Nf3 {[%clk 0:02:58.6]} 4... g6 {[%clk 0:02:55.3]} 5. Bc4 {[%clk 0:02:58.2]} 5...
Nb6 {[%clk 0:02:54.1]} 6. Bb3 {[%clk 0:02:56.6]} 6... Bg7 {[%clk 0:02:52.7]} 7.
Qe2 {[%clk 0:02:53.5]} 7... O-O {[%clk 0:02:51.8]} 8. O-O {[%clk 0:02:51.6]}
8... Bg4 {[%clk 0:02:49.6]} 9. Nbd2 {[%clk 0:02:41.2]} 9... Nc6 {[%clk
0:02:44.9]} 10. Qe3 {[%clk 0:02:21.6]} 10... dxe5 {[%clk 0:02:25.7]} 11. dxe5
{[%clk 0:02:22.5]} 11... Nd5 {[%clk 0:02:24.8]} 12. Qe4 {[%clk 0:02:19.5]} 12...
Bxf3 {[%clk 0:02:09.9]} 13. Nxf3 {[%clk 0:02:18.8]} 13... Ndb4 {[%clk
0:01:57.5]} 14. a3 {[%clk 0:02:08.6]} 14... Na6 {[%clk 0:01:56.3]} 15. Be3
{[%clk 0:02:08]} 15... e6 {[%clk 0:01:48.6]} 16. Rad1 {[%clk 0:02:04.2]} 16...
Qe8 {[%clk 0:01:47.4]} 17. Ba4 {[%clk 0:01:43.6]} 17... h6 {[%clk 0:01:40.2]}
18. b4 {[%clk 0:01:38.1]} 18... Nab8 {[%clk 0:01:24]} 19. Bc5 {[%clk 0:01:38.6]}
19... Qc8 {[%clk 0:01:13.4]} 20. Rd3 {[%clk 0:01:28.1]} 20... Re8 {[%clk
0:01:07.9]} 21. Rfd1 {[%clk 0:01:27.7]} 21... Kh7 {[%clk 0:00:58.2]} 22. h4
{[%clk 0:01:26.9]} 22... a5 {[%clk 0:00:49.3]} 23. b5 {[%clk 0:01:24.7]} 23...
Na7 {[%clk 0:00:46]} 24. h5 {[%clk 0:01:23.6]} 24... Rg8 {[%clk 0:00:35.2]} 25.
hxg6+ {[%clk 0:01:19.5]} 25... fxg6 {[%clk 0:00:36.1]} 26. c4 {[%clk 0:01:17.2]}
26... Bh8 {[%clk 0:00:11.5]} 27. Qf4 {[%clk 0:00:58.8]} 27... Qe8 {[%clk
0:00:08.4]} 28. Bxa7 {[%clk 0:00:45.7]} 28... Rxa7 {[%clk 0:00:09.3]} 29. b6
{[%clk 0:00:46.1]} 29... Qxa4 {[%clk 0:00:07]} 30. Ng5+ {[%clk 0:00:46.6]} 30...
hxg5 {[%clk 0:00:04.1]} 31. Rh3+ {[%clk 0:00:47.1]} 1-0

[Event "*** Titled Tuesday Blitz"]
[Site "Chess.com"]
[Date "2020.12.29"]
[Round "2"]
[White "Parhamov"]
[Black "sakkikuska"]
[Result "1-0"]
[WhiteElo "2939"]
[BlackElo "2358"]
[TimeControl "180+1"]
[EndTime "10:17:26 PST"]
[Termination "Parhamov won by checkmate"]

1. e4 {[%clk 0:02:57.5]} 1... c5 {[%clk 0:02:59.8]} 2. Nc3 {[%clk 0:02:49.9]}
2... Nc6 {[%clk 0:02:59.9]} 3. Bb5 {[%clk 0:02:48.8]} 3... Nd4 {[%clk 0:03:00]}
4. Nf3 {[%clk 0:02:48.2]} 4... e6 {[%clk 0:02:58.9]} 5. O-O {[%clk 0:02:47.6]}
5... Nxb5 {[%clk 0:02:57.2]} 6. Nxb5 {[%clk 0:02:47.5]} 6... a6 {[%clk
0:02:57.9]} 7. Nc3 {[%clk 0:02:47.4]} 7... b5 {[%clk 0:02:56.3]} 8. d4 {[%clk
0:02:47.4]} 8... cxd4 {[%clk 0:02:57.2]} 9. Qxd4 {[%clk 0:02:46.9]} 9... Bb7
{[%clk 0:02:56.1]} 10. Bf4 {[%clk 0:02:46.8]} 10... Rc8 {[%clk 0:02:50.8]} 11.
a3 {[%clk 0:02:32.6]} 11... Nf6 {[%clk 0:02:50.3]} 12. Rfe1 {[%clk 0:02:28.7]}
12... Bc5 {[%clk 0:02:48.2]} 13. Qd2 {[%clk 0:02:27]} 13... O-O {[%clk
0:02:47.9]} 14. Bd6 {[%clk 0:02:25.2]} 14... Bxd6 {[%clk 0:02:38.3]} 15. Qxd6
{[%clk 0:02:26.1]} 15... Ne8 {[%clk 0:02:36.8]} 16. Qd3 {[%clk 0:02:20.2]} 16...
Nc7 {[%clk 0:02:05.8]} 17. Rad1 {[%clk 0:02:10.2]} 17... d5 {[%clk 0:02:05.6]}
18. e5 {[%clk 0:02:08.3]} 18... Qe7 {[%clk 0:02:01.3]} 19. h4 {[%clk 0:02:08.1]}
19... Rfd8 {[%clk 0:01:53.6]} 20. Ne2 {[%clk 0:02:07.8]} 20... Ne8 {[%clk
0:01:53.2]} 21. Ng5 {[%clk 0:02:07.4]} 21... g6 {[%clk 0:01:52.2]} 22. Nd4
{[%clk 0:02:04]} 22... Ng7 {[%clk 0:01:49.3]} 23. c3 {[%clk 0:02:03.3]} 23...
Rc7 {[%clk 0:01:40.4]} 24. Qh3 {[%clk 0:02:02.9]} 24... Rdc8 {[%clk 0:01:36]}
25. Rd3 {[%clk 0:02:02.8]} 25... Rc4 {[%clk 0:01:30.3]} 26. g4 {[%clk
0:02:02.4]} 26... h5 {[%clk 0:01:28.2]} 27. Rf3 {[%clk 0:02:00.1]} 27... Rf8
{[%clk 0:01:26.4]} 28. Rf6 {[%clk 0:01:57.5]} 28... Ne8 {[%clk 0:01:16.9]} 29.
Rf4 {[%clk 0:01:56.3]} 29... Ng7 {[%clk 0:01:16.8]} 30. Re3 {[%clk 0:01:55.7]}
30... a5 {[%clk 0:01:10]} 31. Ref3 {[%clk 0:01:55.4]} 31... hxg4 {[%clk
0:01:03.8]} 32. Qxg4 {[%clk 0:01:55.1]} 32... Nf5 {[%clk 0:01:04]} 33. h5 {[%clk
0:01:51.7]} 33... Rxd4 {[%clk 0:00:42.8]} 34. cxd4 {[%clk 0:01:51.6]} 34... Rc8
{[%clk 0:00:42.4]} 35. Rh3 {[%clk 0:01:50.9]} 35... Rc1+ {[%clk 0:00:41.2]} 36.
Kh2 {[%clk 0:01:51.3]} 36... Nh6 {[%clk 0:00:32.3]} 37. Qg2 {[%clk 0:01:49.5]}
37... Nf5 {[%clk 0:00:30.4]} 38. hxg6 {[%clk 0:01:47]} 38... fxg6 {[%clk
0:00:30.7]} 39. Nf3 {[%clk 0:01:37.5]} 39... Qg7 {[%clk 0:00:28]} 40. Rg4 {[%clk
0:01:37.8]} 40... Ne7 {[%clk 0:00:27.7]} 41. Nh4 {[%clk 0:01:37.7]} 41... Kf7
{[%clk 0:00:24.6]} 42. Nxg6 {[%clk 0:01:34.4]} 42... Nxg6 {[%clk 0:00:23.6]} 43.
Rf3+ {[%clk 0:01:34.6]} 43... Ke8 {[%clk 0:00:23.8]} 44. Rxg6 {[%clk 0:01:34.6]}
44... Qh7+ {[%clk 0:00:24.2]} 45. Rh3 {[%clk 0:01:34.9]} 45... Rc7 {[%clk
0:00:13.5]} 46. Rg8+ {[%clk 0:01:33.9]} 46... Kf7 {[%clk 0:00:13.6]} 47. Rxh7#
{[%clk 0:01:33.5]} 1-0

[Event "*** Titled Tuesday Blitz"]
[Site "Chess.com"]
[Date "2020.12.29"]
[Round "2"]
[White "djano"]
[Black "Schwindle"]
[Result "1-0"]
[WhiteElo "2455"]
[BlackElo "2255"]
[TimeControl "180+1"]
[EndTime "10:17:29 PST"]
[Termination "djano won by checkmate"]

1. d4 {[%clk 0:03:00.9]} 1... Nf6 {[%clk 0:02:59.5]} 2. Nf3 {[%clk 0:03:00.9]}
2... e6 {[%clk 0:02:59.7]} 3. Bf4 {[%clk 0:03:01]} 3... b6 {[%clk 0:02:59.1]} 4.
Nbd2 {[%clk 0:02:59.5]} 4... Bb7 {[%clk 0:02:59.5]} 5. e3 {[%clk 0:02:58]} 5...
c5 {[%clk 0:02:59.9]} 6. Nc4 {[%clk 0:02:38.4]} 6... d5 {[%clk 0:02:47]} 7. Nce5
{[%clk 0:02:37.9]} 7... a6 {[%clk 0:02:44]} 8. Ng5 {[%clk 0:02:37.8]} 8... Qe7
{[%clk 0:02:35.6]} 9. Nexf7 {[%clk 0:02:35]} 9... Rg8 {[%clk 0:02:36.1]} 10.
Nd6+ {[%clk 0:02:27.7]} 10... Kd8 {[%clk 0:02:26.9]} 11. Ngf7+ {[%clk
0:02:14.4]} 11... Kd7 {[%clk 0:02:22.4]} 12. Ne5+ {[%clk 0:02:11]} 12... Kd8
{[%clk 0:02:12.4]} 13. dxc5 {[%clk 0:01:49.8]} 13... bxc5 {[%clk 0:02:10.9]} 14.
Qd2 {[%clk 0:01:46.9]} 14... Nc6 {[%clk 0:01:57.1]} 15. Nxb7+ {[%clk 0:01:26.5]}
15... Qxb7 {[%clk 0:01:56.5]} 16. Nxc6+ {[%clk 0:01:20.4]} 16... Qxc6 {[%clk
0:01:57.4]} 17. Bd3 {[%clk 0:01:17.4]} 17... g5 {[%clk 0:01:53.6]} 18. Be5
{[%clk 0:01:16.4]} 18... Ng4 {[%clk 0:01:37.8]} 19. Bg3 {[%clk 0:01:16.5]} 19...
Ra7 {[%clk 0:01:32]} 20. h3 {[%clk 0:01:14.3]} 20... Nf6 {[%clk 0:01:32]} 21.
O-O {[%clk 0:01:06.3]} 21... h5 {[%clk 0:01:31.7]} 22. Rfe1 {[%clk 0:00:49.5]}
22... h4 {[%clk 0:01:31.6]} 23. Be5 {[%clk 0:00:49.6]} 23... Nd7 {[%clk
0:01:28.7]} 24. Bh2 {[%clk 0:00:44.8]} 24... Nf6 {[%clk 0:01:13.3]} 25. e4
{[%clk 0:00:42.8]} 25... c4 {[%clk 0:01:05.7]} 26. exd5 {[%clk 0:00:42.3]} 26...
exd5 {[%clk 0:01:06.6]} 27. Bf5 {[%clk 0:00:38.2]} 27... Bc5 {[%clk 0:01:06.9]}
28. Re6 {[%clk 0:00:36.3]} 28... Bxf2+ {[%clk 0:01:03.1]} 29. Qxf2 {[%clk
0:00:33.8]} 29... Qb7 {[%clk 0:00:55.3]} 30. Rxf6 {[%clk 0:00:29]} 30... Rg7
{[%clk 0:00:55.8]} 31. Rd6+ {[%clk 0:00:27.1]} 31... Ke8 {[%clk 0:00:52.9]} 32.
Re1+ {[%clk 0:00:26.3]} 32... Kf8 {[%clk 0:00:52.3]} 33. Rd8+ {[%clk 0:00:21.1]}
33... Kf7 {[%clk 0:00:52.4]} 34. Rd7+ {[%clk 0:00:21.6]} 34... Qxd7 {[%clk
0:00:51.5]} 35. Bxd7+ {[%clk 0:00:22.5]} 35... Kg8 {[%clk 0:00:52.3]} 36. Re8+
{[%clk 0:00:21.2]} 36... Kh7 {[%clk 0:00:52.7]} 37. Qf5+ {[%clk 0:00:20.8]}
37... Rg6 {[%clk 0:00:51.8]} 38. Re7+ {[%clk 0:00:20.2]} 38... Kh6 {[%clk
0:00:52.1]} 39. Be8 {[%clk 0:00:19.8]} 39... Rxe7 {[%clk 0:00:45.2]} 40. Qxg6#
{[%clk 0:00:19.5]} 1-0

[Event "*** Titled Tuesday Blitz"]
[Site "Chess.com"]
[Date "2020.12.29"]
[Round "2"]
[White "MatyChess1"]
[Black "Semen_Khanin"]
[Result "0-1"]
[WhiteElo "2526"]
[BlackElo "2796"]
[TimeControl "180+1"]
[EndTime "10:17:34 PST"]
[Termination "Semen_Khanin won by resignation"]

1. e4 {[%clk 0:03:00.9]} 1... e5 {[%clk 0:02:57.7]} 2. Nf3 {[%clk 0:03:00.9]}
2... Nc6 {[%clk 0:02:58]} 3. Bc4 {[%clk 0:03:00]} 3... Bc5 {[%clk 0:02:55.9]} 4.
c3 {[%clk 0:03:00.1]} 4... Nf6 {[%clk 0:02:56.1]} 5. d3 {[%clk 0:03:00.6]} 5...
d6 {[%clk 0:02:54.2]} 6. Nbd2 {[%clk 0:03:00.5]} 6... a6 {[%clk 0:02:54.3]} 7.
h3 {[%clk 0:02:59.2]} 7... h6 {[%clk 0:02:53.2]} 8. Bb3 {[%clk 0:02:59]} 8...
Qe7 {[%clk 0:02:50.9]} 9. Nf1 {[%clk 0:02:58.2]} 9... Bd7 {[%clk 0:02:50.1]} 10.
Ng3 {[%clk 0:02:50.6]} 10... O-O-O {[%clk 0:02:49.8]} 11. Ba4 {[%clk 0:02:37.7]}
11... d5 {[%clk 0:02:30.1]} 12. Qe2 {[%clk 0:02:12.1]} 12... dxe4 {[%clk
0:02:16.7]} 13. dxe4 {[%clk 0:02:05.4]} 13... Bb6 {[%clk 0:02:08.3]} 14. O-O
{[%clk 0:01:55.1]} 14... g5 {[%clk 0:02:08]} 15. Nh2 {[%clk 0:01:46.8]} 15...
Kb8 {[%clk 0:01:45.2]} 16. Be3 {[%clk 0:01:37.4]} 16... Nd4 {[%clk 0:01:36.9]}
17. cxd4 {[%clk 0:01:07.4]} 17... Bxa4 {[%clk 0:01:35.9]} 18. dxe5 {[%clk
0:00:49.8]} 18... Qxe5 {[%clk 0:01:34.6]} 19. Rfc1 {[%clk 0:00:41.1]} 19... Bb5
{[%clk 0:01:31.9]} 20. Qf3 {[%clk 0:00:40.4]} 20... Rd3 {[%clk 0:01:24.5]} 21.
Bxb6 {[%clk 0:00:23.6]} 21... cxb6 {[%clk 0:00:54.6]} 22. Qf5 {[%clk 0:00:24.1]}
22... Qxf5 {[%clk 0:00:53.5]} 23. exf5 {[%clk 0:00:23.1]} 23... Rhd8 {[%clk
0:00:52]} 24. Nf3 {[%clk 0:00:21.1]} 24... R8d5 {[%clk 0:00:52]} 25. Re1 {[%clk
0:00:19]} 25... Rc5 {[%clk 0:00:45.6]} 26. Rac1 {[%clk 0:00:16.8]} 26... Rxc1
{[%clk 0:00:44.7]} 27. Rxc1 {[%clk 0:00:17.7]} 27... Rd5 {[%clk 0:00:43.3]} 28.
Re1 {[%clk 0:00:17.7]} 28... Bc6 {[%clk 0:00:35.3]} 29. Re7 {[%clk 0:00:17.3]}
29... Rd1+ {[%clk 0:00:32.6]} 30. Re1 {[%clk 0:00:15.2]} 30... Bxf3 {[%clk
0:00:32.4]} 0-1

[Event "*** Titled Tuesday Blitz"]
[Site "Chess.com"]
[Date "2020.12.29"]
[Round "2"]
[White "IMAghasiyevKamal"]
[Black "anpospan"]
[Result "1-0"]
[WhiteElo "2608"]
[BlackElo "2323"]
[TimeControl "180+1"]
[EndTime "10:17:34 PST"]
[Termination "IMAghasiyevKamal won on time"]

1. d4 {[%clk 0:03:00.9]} 1... Nf6 {[%clk 0:02:50.8]} 2. c4 {[%clk 0:03:00.1]}
2... c5 {[%clk 0:02:51.4]} 3. d5 {[%clk 0:02:59.3]} 3... e6 {[%clk 0:02:52.3]}
4. Nc3 {[%clk 0:02:58.4]} 4... exd5 {[%clk 0:02:53.2]} 5. cxd5 {[%clk
0:02:58.3]} 5... d6 {[%clk 0:02:54.1]} 6. Nf3 {[%clk 0:02:57.6]} 6... g6 {[%clk
0:02:55]} 7. g3 {[%clk 0:02:54.1]} 7... a6 {[%clk 0:02:55.1]} 8. a4 {[%clk
0:02:53.8]} 8... Bg7 {[%clk 0:02:55.5]} 9. Bg2 {[%clk 0:02:53.9]} 9... O-O
{[%clk 0:02:55.9]} 10. O-O {[%clk 0:02:53.8]} 10... Nbd7 {[%clk 0:02:56.1]} 11.
Bf4 {[%clk 0:02:50.7]} 11... Qe7 {[%clk 0:02:55.5]} 12. a5 {[%clk 0:02:47.4]}
12... h6 {[%clk 0:02:45.9]} 13. Rb1 {[%clk 0:02:35.7]} 13... g5 {[%clk
0:02:42.1]} 14. Bd2 {[%clk 0:02:35.6]} 14... Ng4 {[%clk 0:02:31.2]} 15. b4
{[%clk 0:02:32.1]} 15... Nge5 {[%clk 0:02:23.4]} 16. Nxe5 {[%clk 0:02:30.2]}
16... Bxe5 {[%clk 0:02:11.5]} 17. Na4 {[%clk 0:02:24.7]} 17... cxb4 {[%clk
0:02:05.1]} 18. Bxb4 {[%clk 0:02:24.3]} 18... f5 {[%clk 0:02:02.6]} 19. Qc2
{[%clk 0:02:20.9]} 19... Nf6 {[%clk 0:01:46.9]} 20. Nb6 {[%clk 0:02:14.1]} 20...
Rb8 {[%clk 0:01:46.1]} 21. Nc4 {[%clk 0:02:09.9]} 21... f4 {[%clk 0:01:26.9]}
22. Nxe5 {[%clk 0:02:08.7]} 22... Qxe5 {[%clk 0:01:25.8]} 23. Qg6+ {[%clk
0:02:08.6]} 23... Kh8 {[%clk 0:01:24]} 24. Qxh6+ {[%clk 0:02:08.7]} 24... Kg8
{[%clk 0:01:24.1]} 25. Rbc1 {[%clk 0:01:59.6]} 25... Rf7 {[%clk 0:01:17.6]} 26.
Bc3 {[%clk 0:01:49.2]} 26... Qf5 {[%clk 0:01:11.5]} 27. e4 {[%clk 0:01:43.9]}
27... Qh7 {[%clk 0:00:33.3]} 28. Qxg5+ {[%clk 0:01:40.5]} 28... Qg7 {[%clk
0:00:20.9]} 29. gxf4 {[%clk 0:01:36.4]} 29... Bg4 {[%clk 0:00:11.8]} 30. Bd4
{[%clk 0:01:30.6]} 30... Kh7 {[%clk 0:00:07.5]} 31. Rc3 {[%clk 0:01:24.9]} 31...
Rg8 {[%clk 0:00:06.4]} 32. Qh4+ {[%clk 0:01:17.5]} 32... Qh6 {[%clk 0:00:05.7]}
33. Qxh6+ {[%clk 0:01:17.2]} 33... Kxh6 {[%clk 0:00:05.4]} 34. Rg3 {[%clk
0:01:17.1]} 34... Nh5 {[%clk 0:00:04.6]} 35. f5 {[%clk 0:01:07.6]} 35... Nxg3
{[%clk 0:00:04]} 36. fxg3 {[%clk 0:01:02.1]} 36... Be2 {[%clk 0:00:03.9]} 37.
Rf4 {[%clk 0:01:01.1]} 37... Bb5 {[%clk 0:00:03.4]} 38. Bf3 {[%clk 0:00:57.9]}
1-0

[Event "*** Titled Tuesday Blitz"]
[Site "Chess.com"]
[Date "2020.12.29"]
[Round "2"]
[White "Zmeeed63"]
[Black "Bodnar_Mykola"]
[Result "1-0"]
[WhiteElo "2333"]
[BlackElo "2542"]
[TimeControl "180+1"]
[EndTime "10:17:34 PST"]
[Termination "Zmeeed63 won by resignation"]

1. d4 {[%clk 0:03:00.9]} 1... Nf6 {[%clk 0:02:59.6]} 2. c4 {[%clk 0:03:00.4]}
2... g6 {[%clk 0:02:59.9]} 3. Nc3 {[%clk 0:03:00.3]} 3... Bg7 {[%clk 0:03:00.2]}
4. Nf3 {[%clk 0:03:00.7]} 4... O-O {[%clk 0:02:57.7]} 5. Bg5 {[%clk 0:03:00.7]}
5... c5 {[%clk 0:02:55.6]} 6. d5 {[%clk 0:03:00]} 6... d6 {[%clk 0:02:46]} 7. e3
{[%clk 0:03:00.2]} 7... a6 {[%clk 0:02:45.7]} 8. Be2 {[%clk 0:02:53.7]} 8... b5
{[%clk 0:02:43.5]} 9. cxb5 {[%clk 0:02:54.6]} 9... axb5 {[%clk 0:02:44.4]} 10.
Bxb5 {[%clk 0:02:51.7]} 10... Ne4 {[%clk 0:02:35.6]} 11. Nxe4 {[%clk 0:02:21.9]}
11... Qa5+ {[%clk 0:02:35.1]} 12. Qd2 {[%clk 0:02:20.4]} 12... Qxb5 {[%clk
0:02:34.7]} 13. Bxe7 {[%clk 0:02:17.3]} 13... Re8 {[%clk 0:01:26.1]} 14. Nxd6
{[%clk 0:01:49.5]} 14... Qxb2 {[%clk 0:01:26]} 15. Qxb2 {[%clk 0:01:46.2]} 15...
Bxb2 {[%clk 0:01:26.9]} 16. Nxe8 {[%clk 0:01:35.2]} 16... Bxa1 {[%clk
0:01:26.6]} 17. O-O {[%clk 0:01:31.9]} 17... Rxa2 {[%clk 0:01:18.6]} 18. Bxc5
{[%clk 0:01:30.8]} 18... Na6 {[%clk 0:01:14.9]} 19. Bd4 {[%clk 0:01:27.7]} 19...
Bxd4 {[%clk 0:01:14.4]} 20. Nxd4 {[%clk 0:01:25.9]} 20... Kf8 {[%clk 0:01:08.1]}
21. Nd6 {[%clk 0:01:17.6]} 21... Bd7 {[%clk 0:01:05.8]} 22. h3 {[%clk
0:01:05.2]} 22... Ke7 {[%clk 0:01:02.1]} 23. Ne4 {[%clk 0:01:00]} 23... f5
{[%clk 0:01:00.3]} 24. d6+ {[%clk 0:00:57]} 24... Kf7 {[%clk 0:00:59.1]} 25.
Ng5+ {[%clk 0:00:50.7]} 25... Kg7 {[%clk 0:00:55.9]} 26. Rb1 {[%clk 0:00:48.8]}
26... h6 {[%clk 0:00:54.1]} 27. Rb7 {[%clk 0:00:40.2]} 27... Nc5 {[%clk
0:00:49.8]} 28. Nge6+ {[%clk 0:00:35.4]} 28... Nxe6 {[%clk 0:00:49.8]} 29. Nxe6+
{[%clk 0:00:31.3]} 29... Kf6 {[%clk 0:00:49.9]} 30. Nc5 {[%clk 0:00:24.4]} 30...
Bc6 {[%clk 0:00:38.6]} 31. Rb6 {[%clk 0:00:22]} 31... Bd5 {[%clk 0:00:33.7]} 32.
d7+ {[%clk 0:00:15.6]} 32... Ke7 {[%clk 0:00:32]} 33. Rb8 {[%clk 0:00:16]} 1-0

[Event "*** Titled Tuesday Blitz"]
[Site "Chess.com"]
[Date "2020.12.29"]
[Round "2"]
[White "PaulfromSPb"]
[Black "ChronicUnhappiness"]
[Result "1-0"]
[WhiteElo "2673"]
[BlackElo "2337"]
[TimeControl "180+1"]
[EndTime "10:17:38 PST"]
[Termination "PaulfromSPb won on time"]

1. e4 {[%clk 0:03:00.9]} 1... c5 {[%clk 0:02:59]} 2. Ne2 {[%clk 0:03:00.1]} 2...
Nc6 {[%clk 0:02:59]} 3. g3 {[%clk 0:03:00.4]} 3... g6 {[%clk 0:02:58.3]} 4. Bg2
{[%clk 0:03:00.6]} 4... Bg7 {[%clk 0:02:58.6]} 5. c3 {[%clk 0:03:01.5]} 5... e5
{[%clk 0:02:58.6]} 6. f4 {[%clk 0:02:58.6]} 6... d6 {[%clk 0:02:56.8]} 7. d3
{[%clk 0:02:58]} 7... Nge7 {[%clk 0:02:56.3]} 8. Be3 {[%clk 0:02:58.3]} 8... O-O
{[%clk 0:02:55.7]} 9. Nd2 {[%clk 0:02:58.1]} 9... f5 {[%clk 0:02:55.3]} 10. O-O
{[%clk 0:02:57.4]} 10... Be6 {[%clk 0:02:51.6]} 11. Nf3 {[%clk 0:02:53.9]} 11...
Kh8 {[%clk 0:02:49.5]} 12. Qd2 {[%clk 0:02:52.1]} 12... b6 {[%clk 0:02:40.2]}
13. Nh4 {[%clk 0:02:45.2]} 13... Rc8 {[%clk 0:02:38.1]} 14. exf5 {[%clk
0:02:40.9]} 14... Nxf5 {[%clk 0:02:37.4]} 15. Nxf5 {[%clk 0:02:40.4]} 15... Bxf5
{[%clk 0:02:37.5]} 16. Rae1 {[%clk 0:02:39.7]} 16... d5 {[%clk 0:02:05.1]} 17.
d4 {[%clk 0:02:34]} 17... cxd4 {[%clk 0:01:59.3]} 18. cxd4 {[%clk 0:02:34.9]}
18... e4 {[%clk 0:01:59.6]} 19. h3 {[%clk 0:02:33.8]} 19... h5 {[%clk
0:01:55.6]} 20. Nc3 {[%clk 0:02:31.1]} 20... Qd7 {[%clk 0:01:54.5]} 21. Kh2
{[%clk 0:02:30.2]} 21... Na5 {[%clk 0:01:45.3]} 22. b3 {[%clk 0:02:29.9]} 22...
Rf6 {[%clk 0:01:39.2]} 23. Rc1 {[%clk 0:02:27.5]} 23... Bf8 {[%clk 0:01:36.9]}
24. Ne2 {[%clk 0:02:26.3]} 24... Ba3 {[%clk 0:01:30.8]} 25. Rxc8+ {[%clk
0:02:24.3]} 25... Qxc8 {[%clk 0:01:31.7]} 26. Qc3 {[%clk 0:02:20.6]} 26... Rc6
{[%clk 0:01:29.5]} 27. Qe1 {[%clk 0:02:15.4]} 27... Rc2 {[%clk 0:01:29.3]} 28.
g4 {[%clk 0:02:14.8]} 28... hxg4 {[%clk 0:01:07.7]} 29. hxg4 {[%clk 0:02:14.3]}
29... Bxg4 {[%clk 0:01:06.8]} 30. Qh4+ {[%clk 0:02:12.4]} 30... Kg8 {[%clk
0:00:57.8]} 31. f5 {[%clk 0:02:11.1]} 31... Bxf5 {[%clk 0:00:44.9]} 32. Nf4
{[%clk 0:02:06.2]} 32... Qd7 {[%clk 0:00:23.5]} 33. Kh1 {[%clk 0:01:41.8]} 33...
Nc6 {[%clk 0:00:22.7]} 34. Qg3 {[%clk 0:01:22.6]} 34... Qf7 {[%clk 0:00:19.9]}
35. Kg1 {[%clk 0:01:11.3]} 35... Bd6 {[%clk 0:00:18.9]} 36. Qg5 {[%clk 0:01:11]}
36... Ne7 {[%clk 0:00:16.5]} 37. Nh5 {[%clk 0:01:08.3]} 37... Qe6 {[%clk
0:00:07.9]} 38. Nf6+ {[%clk 0:00:58.8]} 38... Kf7 {[%clk 0:00:07.4]} 39. Nh7
{[%clk 0:00:59.3]} 39... Kg8 {[%clk 0:00:04.9]} 40. Qh4 {[%clk 0:00:57.5]} 1-0